Cogmind - Beta 13 @@@ ROGUE MODE // 2024.04.01 @ 16:46:35 Player: Olafz Result: Destroyed by H-61 Shepherd with Heavy Assault Cannon Performance ------------- Evolutions (2) 1000 Regions Visited (4) 800 Robots Destroyed (33) 165 Value Destroyed (895) 895 Prototype IDs (0) 0 Alien Tech Used (0) 0 Bonus (11) 11 TOTAL SCORE: 2871 Bonus ------- High Alert Combat Kills 11 Cogmind --------- Core Integrity 0/550 Matter 290/300 Energy 220/220 System Corruption 3% Temperature Cool (0) Movement Walking (125) Location -8/Materials Parts ------- > --- POWER (2) -------- Light Nuclear Core Light Nuclear Core > --- PROPULSION (2) --- Carbon-fiber Leg Titanium Leg > --- UTILITY (5) ------ Small Storage Unit Trap Scanner Improved Signal Interpreter Target Analyzer System Shield > --- WEAPON (2) ------- Heavy Hammer Heavy Hammer > --- INVENTORY (8) ---- Light Nuclear Core Trap Scanner Improved Signal Interpreter Improved Signal Interpreter Heavy Hammer Peak State ------------ > --- POWER ------------ Light Nuclear Core Light Nuclear Core > --- PROPULSION ------- Armored Huge Wheel > --- UTILITY ---------- Small Storage Unit Trap Scanner Improved Signal Interpreter Target Analyzer > --- WEAPON ----------- Heavy Hammer Heavy Hammer > --- INVENTORY -------- Light Nuclear Core Armored Huge Wheel Trap Scanner Improved Signal Interpreter Improved Signal Interpreter Heavy Hammer [Rating: 30] Favorites ----------- Power Deuterium Engine Engine Deuterium Engine Power Core Light Nuclear Core Propulsion Aluminum Leg Leg Aluminum Leg Wheel Armored Huge Wheel Utility Small Storage Unit Device Seismic Detector Storage Small Storage Unit Processor Target Analyzer Hackware System Shield Weapon Heavy Hammer Energy Gun EM Pulse Gun Launcher Rocket Launcher Impact Weapon Heavy Hammer Build | -11 -10 -10 -9 -8 ------- Run | Yrd Mat Min Mat Mat Slots Evolved 4 | . . . 2 2 Power 1 | . . . 1 . Propulsion . | . . . . . Utility 3 | . . . 1 2 Weapon . | . . . . . Parts Attached 40 | 8 . 2 14 16 Power 14 | 1 . 1 6 6 Engine 8 | 1 . 1 6 . Core 6 | . . . . 6 Reactor . | . . . . . Propulsion 9 | 2 . . 4 3 Treads . | . . . . . Leg 8 | 2 . . 4 2 Wheel 1 | . . . . 1 Hover . | . . . . . Flight . | . . . . . Utility 9 | 3 . . 2 4 Device 3 | 2 . . . 1 Storage 2 | 1 . . 1 . Processor 3 | . . . 1 2 Hackware 1 | . . . . 1 Protection . | . . . . . Artifact . | . . . . . Weapon 8 | 2 . 1 2 3 Energy Gun 2 | 2 . . . . Energy Cannon . | . . . . . Ballistic Gun . | . . . . . Ballistic Cannon . | . . . . . Launcher 1 | . . 1 . . Special Weapon . | . . . . . Impact Weapon 5 | . . . 2 3 Slashing Weapon . | . . . . . Piercing Weapon . | . . . . . Special Melee Weapon . | . . . . . Unidentified Prototypes . | . . . . . Parts Lost 10 | . . . 6 4 Power 3 | . . . 2 1 Propulsion 3 | . . . 1 2 Utility 3 | . . . 2 1 Weapon 1 | . . . 1 . Highest Loss Streak 4 | . . . 3 4 To Critical Strikes . | . . . . . Average Slot Usage (%) 80 | . 100 91 80 71 Engine 10 | . 14 14 17 1 Core 3 | . . . . 9 Leg 18 | . 28 28 20 9 Device 15 | . 28 28 11 8 Storage 6 | . . . 10 9 Processor 5 | . . . 1 12 Energy Gun 4 | . 28 11 . . Launcher 2 | . . 8 3 . Impact Weapon 12 | . . . 15 18 Naked Turns . | . . . . . Heaviest Build 29 | 15 11 13 29 25 Greatest Support 32 | 20 20 20 20 32 Greatest Overweight (x) 4 | . . . 1 4 Average Overweight (x) . | . . . . . Largest Inventory Capacity 8 | 8 5 5 8 8 Average Capacity 7 | 7 5 5 7 8 Most Carried 8 | 1 1 5 6 8 Average Carried 4 | . 1 2 3 7 Final Capacity 8 | 5 5 5 8 8 Final Carried 5 | 1 1 5 5 5 Class Distribution -------------------- 100% | Mutant Dominant Class ---------------- Mutant | -10/Materials Mutant | -10/Mines Mutant | -9/Materials Mutant | -8/Materials Resources | -11 -10 -10 -9 -8 ----------- Run | Yrd Mat Min Mat Mat Matter Collected 726 | 203 . 104 272 147 Remotely . | . . . . . Salvage Created 1033 | 17 . 91 571 354 Parts 55 | 4 . 15 24 12 Haulers Intercepted . | . . . . . Recyclers Shooed 1 | . . . 1 . Parts Field Recycled . | . . . . . Retrieved Matter . | . . . . . Parts Self-Destructed . | . . . . . Prevented . | . . . . . Kills | -11 -10 -10 -9 -8 ------- Run | Yrd Mat Min Mat Mat Combat Hostiles Destroyed 24 | . . 5 13 6 Melee 6 | . . . 5 1 AOE 11 | . . 5 6 . Classes Destroyed 9 | 1 . 2 6 . Worker 2 | . . . 1 1 Tunneler 2 | 1 . . . 1 Recycler 2 | . . . 2 . Operator 1 | . . . 1 . Watcher 2 | . . . 1 1 Swarmer 6 | . . 3 3 . Grunt 8 | . . . 6 2 Brawler 2 | . . . 1 1 Sentry 8 | . . 2 3 3 Best Kill Streak 4 | 1 . 3 4 3 Combat Bots Only 3 | . . 3 3 3 Max Kills in Single Turn 2 | 1 . 2 2 1 Gunslinging . | . . . . . Exploded 2 | . . 2 2 . Melee 1 | . . . 1 1 Uniques/NPCs Destroyed . | . . . . . Combat | -11 -10 -10 -9 -8 -------- Run | Yrd Mat Min Mat Mat Hostile Shots Fired 157 | . . 7 80 70 Missed 41 | . . . 26 15 Damage Taken 2255 | . . 89 962 1204 Core 898 | . . 24 321 553 Absorbed by Shields . | . . . . . Regen/Repaired (Parts) 83 | . . . 83 . Core Remaining (%) 69 | 100 . 90 19 . Volleys Fired 21 | 5 . 5 11 . Largest 2 | 2 . 1 1 . Hottest 90 | 90 . 33 33 . Shots Fired 26 | 10 . 5 11 . Gun 10 | 10 . . . . Cannon . | . . . . . Launcher 16 | . . 5 11 . Special . | . . . . . Kinetic . | . . . . . Thermal 5 | 5 . . . . Explosive 16 | . . 5 11 . Electromagnetic 5 | 5 . . . . Robot Hit Streak 5 | 1 . 3 5 . Robot Miss Streak 4 | 4 . 2 4 . Penetration Max . | . . . . . Secondary Targets . | . . . . . Shots Hit Robots 58 | 3 . 3 34 18 Core Hits 27 | 2 . 8 16 1 Critical Kills . | . . . . . Critical Parts Destroyed 8 | . . . 5 3 Critical Strikes 8 | . . . 5 3 Smash 8 | . . . 5 3 Melee Attacks 69 | . . . 34 35 Impact 69 | . . . 34 35 Slashing . | . . . . . Piercing . | . . . . . Sneak Attacks 5 | . . . 3 2 Combat Hostiles . | . . . . . Follow-up Attacks 6 | . . . 2 4 Damage Inflicted 2514 | 49 . 239 1584 642 Guns 40 | 40 . . . . Cannons . | . . . . . Explosions 718 | . . 239 479 . Melee 1747 | . . . 1105 642 Ramming 9 | 9 . . . . Kinetic . | . . . . . Thermal 265 | 13 . . 252 . Explosive 466 | . . 239 227 . Electromagnetic 27 | 27 . . . . Impact 1747 | . . . 1105 642 Slashing . | . . . . . Piercing . | . . . . . Highest Corruption 3 | . . . . 3 Average Corruption 3 | . . . . 3 Corruption Purged . | . . . . . Corruption Blocked . | . . . . . Effects 10 | . . . . 10 Message Errors 1 | . . . . 1 Matter Fused 3 | . . . . 3 Heat Flow Errors 1 | . . . . 1 Energy Discharges 1 | . . . . 1 Data Loss (minor) 2 | . . . . 2 Data Loss (major) 2 | . . . . 2 Overload Shots . | . . . . . Overflow Damage 590 | . . . 383 207 Projectiles . | . . . . . Explosions 54 | . . . 54 . Melee 536 | . . . 329 207 Knockbacks 1 | . . . . 1 Impact 1 | . . . . 1 Kinetic . | . . . . . Secondary . | . . . . . Self-Inflicted Damage 267 | . . . 267 . Shots 4 | . . . 4 . Rammed . | . . . . . Targets Rammed 2 | 2 . . . . Kicked 2 | 2 . . . . Crushed . | . . . . . Highest Temperature 284 | 90 . . 11 284 Average Temperature 80 | 41 . . 5 148 Received Heat Transfer 648 | . . 18 288 342 Siege Activations . | . . . . . Robots Corrupted . | . . . . . Combat Hostiles . | . . . . . Parts Fried 21 | . . . 11 10 Impact Corruptions 20 | . . . 10 10 Robots Melted . | . . . . . Combat Hostiles . | . . . . . Parts Melted . | . . . . . Heat Transferred 187 | 37 . . 150 . Parts Sabotaged . | . . . . . Parts Stolen . | . . . . . Parts Stripped . | . . . . . Power Chain Reactions . | . . . . . Alert | -11 -10 -10 -9 -8 ------- Run | Yrd Mat Min Mat Mat Peak Influence 412 | 5 3 162 412 342 Initial 165 | . 3 . 63 165 Average 178 | . 3 10 274 231 Maximum Alert Level 2 | . . . 2 1 Low Security (%) 55 | 100 100 100 22 50 Level 1 44 | . . . 76 49 Level 2 . | . . . 1 . Level 3 . | . . . . . Level 4 . | . . . . . Level 5 . | . . . . . High Security . | . . . . . Max Security . | . . . . . Squads Dispatched 4 | . . . 2 2 Investigation 2 | . . . 2 . Extermination . | . . . . . Reinforcement 2 | . . . . 2 Assault . | . . . . . Garrison . | . . . . . Intercept . | . . . . . Searches Triggered . | . . . . . Construction Impeded . | . . . . . Haulers Reinforced . | . . . . . Active Scanning Responses . | . . . . . Cargo Convoy Interrupts . | . . . . . Stealth | -11 -10 -10 -9 -8 --------- Run | Yrd Mat Min Mat Mat Distress Signals 4 | . . . 3 1 Communications Jammed . | . . . . . Distress Signals . | . . . . . Times Spotted 34 | . . 4 20 10 Peak Tracking Total 4 | . . 2 3 4 Tactical Retreats 2 | . . . 1 1 Traps | -11 -10 -10 -9 -8 ------- Run | Yrd Mat Min Mat Mat Traps Triggered . | . . . . . Indirectly . | . . . . . Trap Hack Attempts . | . . . . . Triggered . | . . . . . Disarmed . | . . . . . Reprogrammed . | . . . . . Reused . | . . . . . Traps Extracted . | . . . . . Installed . | . . . . . Triggered . | . . . . . Machines | -11 -10 -10 -9 -8 ---------- Run | Yrd Mat Min Mat Mat Machines Disabled 4 | . . 2 2 . Max in Single Turn 2 | . . 2 2 . Machines Repaired . | . . . . . Machines Dismantled . | . . . . . Machines Sabotaged . | . . . . . Overloaded Fab Kills . | . . . . . Hacking | -11 -10 -10 -9 -8 --------- Run | Yrd Mat Min Mat Mat Machines Accessed 4 | . . . 3 1 Terminals 1 | . . . . 1 Fabricators . | . . . . . Repair Stations 1 | . . . 1 . Recycling Units 2 | . . . 2 . Scanalyzers . | . . . . . Garrison Access . | . . . . . Total Hacks 11 | . . . 9 2 Successful 5 | . . . 5 . Failed 6 | . . . 4 2 Catastrophic 1 | . . . . 1 Database Lockouts . | . . . . . Manual 3 | . . . 3 . Terminals 2 | . . . . 2 Fabricators . | . . . . . Repair Stations 4 | . . . 4 . Recycling Units 5 | . . . 5 . Scanalyzers . | . . . . . Garrison Access . | . . . . . Terminal Hacks . | . . . . . Fabricator Hacks . | . . . . . Repair Station Hacks 3 | . . . 3 . Scan Component 1 | . . . 1 . Repair 1 | . . . 1 . Refit 1 | . . . 1 . Recycling Unit Hacks 1 | . . . 1 . Report Inventory 1 | . . . 1 . Scanalyzer . | . . . . . Garrison Access Hacks . | . . . . . Unauthorized Hacks 1 | . . . 1 . Terminals . | . . . . . Fabricators . | . . . . . Repair Stations . | . . . . . Recycling Units 1 | . . . 1 . Tunnel 1 | . . . 1 . Scanalyzers . | . . . . . Garrison Access . | . . . . . Data Cores Recovered 1 | . . . 1 . Used . | . . . . . Hacking Detections 3 | . . . 2 1 Full Trace Events 1 | . . . 1 . Feedback Events . | . . . . . Feedback Blocked . | . . . . . Robot Schematics Acquired . | . . . . . Robots Built . | . . . . . Authchips . | . . . . . Time . | . . . . . Total Robot Build Rating . | . . . . . Part Schematics Acquired . | . . . . . Parts Built . | . . . . . Authchips . | . . . . . Time . | . . . . . Total Part Build Rating . | . . . . . Parts Repaired 1 | . . . 1 . Time 26 | . . . 26 . Parts Recycled . | . . . . . Recycled Matter . | . . . . . Retrieved Matter . | . . . . . Retrieved Components . | . . . . . Parts Scanalyzed . | . . . . . Part Schematics Acquired . | . . . . . Parts Damaged . | . . . . . Bothacking | -11 -10 -10 -9 -8 ------------ Run | Yrd Mat Min Mat Mat Used RIF Installer . | . . . . . Robots Hacked . | . . . . . Non-combat . | . . . . . Combat . | . . . . . Robot Hacks Applied . | . . . . . Relay Couplers Released . | . . . . . Fabnet Peak Effective % . | . . . . . Robots Rewired . | . . . . . Allies Hacked . | . . . . . Hacks Repelled . | . . . . . Allies | -11 -10 -10 -9 -8 -------- Run | Yrd Mat Min Mat Mat Total Allies . | . . . . . Largest Group . | . . . . . Highest-Rated Group . | . . . . . Highest-Rated Ally . | . . . . . Total Orders . | . . . . . Ally Attacks . | . . . . . Total Damage . | . . . . . Kills . | . . . . . Allies Corrupted . | . . . . . Allies Melted . | . . . . . Intel | -11 -10 -10 -9 -8 ------- Run | Yrd Mat Min Mat Mat Robot Analysis Total . | . . . . . Derelict Logs Recovered . | . . . . . Drone Launches . | . . . . . Drone Recoveries . | . . . . . Exploration | -11 -10 -10 -9 -8 ------------- Run | Yrd Mat Min Mat Mat Turns Passed 1901 | 84 136 357 682 642 Spaces Moved 1111 | 53 112 285 295 366 Core 73 | 13 . . . 60 Treads . | . . . . . Legs 954 | 40 112 285 295 222 Wheels 84 | . . . . 84 Hover . | . . . . . Flight . | . . . . . Fastest Speed 50 | 50 120 120 120 100 Average Speed 141 | 102 120 120 177 141 Slowest Speed 250 | 120 120 120 190 250 Overloaded Moves . | . . . . . Propulsion Burnouts . | . . . . . Robots Hopped . | . . . . . Cave-ins Triggered . | . . . . . Exploration Rate (%) 24 | 3 29 41 30 18 Regions Visited 4 Branch Regions 1 Pre-discovered Areas 1 | . . . 1 . Known Exits Taken . | . . . . . Unknown Exits Taken 4 | 1 1 1 1 . Scrap Searched 1 | . . 1 . . Spaces Dug 7 | . . . 1 6 Terrain Destroyed 156 | . . 52 98 6 Melee 7 | . . . 1 6 Projectile . | . . . . . AOE 149 | . . 52 97 . Terrain Rammed . | . . . . . Walls Destroyed . | . . . . . Machines Disabled . | . . . . . Actions | -11 -10 -10 -9 -8 --------- Run | Yrd Mat Min Mat Mat Total 1300 | 68 113 295 388 436 Wait 35 | . 2 1 27 5 Move 1107 | 52 111 284 294 366 Hop . | . . . . . Pick Up 10 | . . 1 4 5 Fast Attach 25 | 8 . 1 6 10 Attach 8 | . . . 3 5 Detach 9 | 1 . 2 . 6 Swap 7 | . . 1 5 1 Drop 15 | . . . 7 8 Fire 21 | 5 . 5 11 . Melee 61 | . . . 31 30 Ram . | . . . . . Kick 2 | 2 . . . . Crush . | . . . . . Escape Stasis . | . . . . . Rewire . | . . . . . Trap . | . . . . . Miscellaneous . | . . . . . Route ------- -11/Scrapyard -10/Materials -10/Mines -9/Materials -8/Materials (discovered 1 exit: *Fac) History --------- Turn | Location | Event 4 | -11/Scrapyard | Discovered new exit (range 16) 85 | -11/Scrapyard | Entered Materials 199 | -10/Materials | Discovered new exit (range 16) 221 | -10/Materials | Entered Mines 279 | -10/Mines | Received a Rocket Launcher from a helpful Derelict 313 | -10/Mines | Build established: Mutant 475 | -10/Mines | Found a hidden stash of uninstalled traps 497 | -10/Mines | Discovered new exit (range 13) 578 | -10/Mines | Entered Materials 578 | -9/Materials | Evolved 2 slots: Power x1, Utility x1 798 | -9/Materials | Core integrity fell below 50% 836 | -9/Materials | Lost 3 parts (1n1u1w) 1075 | -9/Materials | Repaired Aluminum Leg 1196 | -9/Materials | Core integrity fell below 20% 1216 | -9/Materials | Discovered new exit (range 17) 1260 | -9/Materials | Entered another Materials area 1260 | -8/Materials | Evolved 2 slots: Utility x2 1528 | -8/Materials | Core integrity fell below 50% 1554 | -8/Materials | Lost 4 parts (1p2n1u) 1877 | -8/Materials | Discovered new exit (range 7) 1891 | -8/Materials | Core integrity fell below 20% 1891 | -8/Materials | Identified exit to Factory 1902 | -8/Materials | Destroyed by H-61 Shepherd with Heavy Assault Cannon Last Messages --------------- 01810_ Connecting with Terminal... 01810_ Current location identified: Materials 01841_ Acquired 27 matter. 01865_ System corrupted: Component data lost. 01877_ EXIT=FOUND 01877_ Penetrated by Slug. 01877_ Knocked back. 01879_ Acquired 3 matter. 01881_ Penetrated by Slug. 01881_ Knocked back. 01884_ Penetrated by Slug. 01884_ Hvy. Hammer blasted off. 01884_ Knocked back. 01886_ Acquired Hvy. Hammer. 01890_ Penetrated by Slug. 01891_ EXIT=IDENTIFIED: FACTORY 01894_ H-61 Shepherd calls for reinforcements. 01894_ ALERT: Hostile activity reported, dispatching reinforcements to area. 01896_ Knocked back. Map ----- +----------------------------------------------------+ | | | | | | | | | | | | | | | | | | | ?????????????????????????????????????????????????? | | ??###########????????????????????????????????????? | | ??# T ! ###??????????????????????????????????? | | ??# "#??????????????????????????????????? | | ??# """ ###??????????????????????????????????? | | ??# """=#????????????????????????????????????? | | ??# ! """ #????????????????????????????????????? | | ??#= ! [=#????????????????????????????????????? | | ### ##???????????????????????????????????? | | ""#= "#???????????????????????????????????? | | T"#####+###"##???????????????????????????????????? | | ###"#######??????????????????????????????? | | + #??###?????????????????????????? | | " """ # ####;;####?????????????????????? | | " """ # #;% % #?????????????????????? | | " """% # %; % < #?????????????????????? | | # ##% @H#?????????????????????? | | % + %## +?????????????????????? | | #####+### ## #?????????????????????? | | #?# ## #?????????????????????? | | ! " #?############ #?????????????????????? | | """ #????????????# ????????????????????? | | "" #????????????# ???????????????????? | | """ #????????????# """ "??????????????????? | | "" #????????????# """ ""?????????????????? | | """ #????????????# """ "??????????????????? | | """ #????????????# ? ??????????????????? | | """ #????????????# ?? ?????????????????? | | " #????????????# ""?? ""?????????????????? | | #????????????# ?????"??????????????????? | | ! !#????????????? ????????????????????????? | | #######??????????????? ????????????????????????? | | ?????????????????????????????????????????????????? | | ?????????????????????????????????????????????????? | | ?????????????????????????????????????????????????? | | ?????????????????????????????????????????????????? | | ?????????????????????????????????????????????????? | | ?????????????????????????????????????????????????? | | ##???????????????????????????????????????????????? | | #???????????????????????????????????????????????? | | *#???????????????????????????????????????????????? | +----------------------------------------------------+ Best States ------------- Heat Dissipation 31 Energy Generation 23 Energy Capacity 450 Matter Stores 300 Matter Capacity 300 Sight Range 18 Terrain Scan Range 16 Terrain Scan Density 10 Evasion (%) 55 Target Analysis 5 Defensive Hacking 10 Item Schematics ----------------- None Robot Schematics ------------------ None Fabricated ------------ Nothing Alien Tech Used ----------------- None Achievements -------------- None Challenges ------------ None Game ------ Seed PointyLinkedDeconstructor Manual? 0 Play Time 00:28:16 Cumulative 7.9 hours Start 2024.04.01 @ 16:19:07 End 2024.04.01 @ 16:46:35 Sessions 1 Manual Loads 0 Difficulty Rogue Special Mode None Game No. 19 Rogue 17 Adventurer 2 Explorer 0 Win Type - Total 0 Types 0/0/0/0/0/0/0/0/0 Lore% 14 Gallery% 14 Achievement% 15 Wizard Run 0 Options --------- Layout 0 ASCII 0 Keyboard 1 Movement Arrows Keybinds 0 Fullscreen 2 Font 18/SmallcapsGlow Map View 76x50 Zoom Use 0% Tactical HUD 1 Map Filters NONE Filters NONE Steam 1 RUN: 255edb90-07a6-418d-8b09-1a94212191d3